Workbook

Sheet PL
C3: Konzernabschluss zum 30. September 2021.
C5: Konsolidierte Gesamtergebnisrechnung.
C7: in TEUR | E7: H1 2020/21 | G7: H1 2021/22
C8: Umsatzerlöse | E8: 257486.7598 | G8: 255168.8242
C9: Sonstige betriebliche Erträge | E9: 2084.510039 | G9: 10883.05525
C10: Veränderung des Bestandes an Fertigerzeugnissen, unfertigen Erzeugnissen sowie an noch nicht abrechenbaren Leistungen | E10: 519.7882121 | G10: -1064.464882
C11: Aufwendungen für Material und sonstige bezogene Herstellungsleistungen | E11: -116363.5702 | G11: -90096.85014
C12: Personalaufwand | E12: -125507.0678 | G12: -114989.0112
C13: Sonstige betriebliche Aufwendungen | E13: -36577.54048 | G13: -37173.31685
C14: Anteiliges Ergebnis aus assoziierten Unternehmen und Gemeinschaftsunternehmen | E14: -1939.45243 | G14: -1333.227586
C15: Ergebnis aus betrieblicher Tätigkeit vor Abschreibungen und Wertminderungen (EBITDA) | E15: -20296.57289 | G15: 21395.00886
C16: Aufwand für planmäßige Abschreibungen | E16: -12747.45565 | G16: -10854.68003
C17: Wertminderungen | E17: -24791.488 | G17: 106.8293791
C18: Ergebnis aus betrieblicher Tätigkeit (EBIT) | E18: -57835.51654 | G18: 10647.15821
C19: Finanzerträge | E19: 778.4777787 | G19: 2790.94502
C20: Finanzaufwendungen | E20: -8587.151158 | G20: -5600.203783
C21: Finanzergebnis | E21: -7808.67338 | G21: -2809.258763
C22: Anteiliges Ergebnis aus assoziierten Unternehmen und Gemeinschaftsunternehmen als Finanzinvestitionen | E22: -506.87974 | G22: -167.01942
C23: Ergebnis vor Steuern | E23: -66151.06966 | G23: 7670.880025
C24: Ertragsteuern | E24: 10597.1843 | G24: -2292.782038
C25: Periodenergebnis | E25: -55553.88536 | G25: 5378.097986
C26: davon den Anteilseignern der Gesellschaft zurechenbar | E26: -53958.82087 | G26: 2991.44859
C27: davon nicht beherrschende Anteile | E27: -1595.064487 | G27: 2386.649396
C29: Periodenergebnis je Aktie, den Anteilseignern der Gesellschaft zurechenbar 1) | E29: -4.150678528 | G29: 0.23011143
C31: Sonstiges Ergebnis
C32: Währungsumrechnungsdifferenzen | E32: 5895.993648 | G32: -3737.681472
C33: Währungsumrechnungsdifferenzen aus Nettoinvestitionen in einen ausländischen Geschäftsbetrieb | E33: -3206.36535 | G33: 610.12687
C34: Steuern betreffend Posten, die in das Periodenergebnis umgegliedert werden | E34: 801.591 | G34: -152.53172
C35: Posten, die anschließend in das Periodenergebnis umgegliedert werden | E35: 3491.219298 | G35: -3280.086322
C36: Umbewertungen von Verpflichtungen aus Leistungen an Arbeitnehmer nach Beendigung des Dienstverhältnisses | E36: 0 | G36: 0
C37: Steuern betreffend Posten, die nicht in das Periodenergebnis umgegliedert werden | E37: 0 | G37: 0
C38: Posten, die anschließend nicht in das Periodenergebnis umgegliedert werden | E38: 0 | G38: 0
C39: Sonstiges Ergebnis der Periode nach Steuern | E39: 3491.219298 | G39: -3280.086322
C40: Gesamtergebnis der Periode | E40: -52062.66606 | G40: 2098.011665
C41: davon den Anteilseignern der Gesellschaft zurechenbar | E41: -51377.35579 | G41: 1524.369462
C42: davon nicht beherrschende Anteile | E42: -685.310264 | G42: 573.6422031
B46: 1) | C46: Ergebnis je Aktie verwässert = unverwässert und bezogen auf 13,0 Mio. Aktien.

Sheet BS
C3: Konsolidierte Bilanz.
C5: in TEUR | E5: 31. März 2021 | G5: 30. Sept. 2021
C6: AKTIVA
C7: Sachanlagen | E7: 55171.21875 | G7: 52933.11555
C8: Immaterielle Vermögenswerte | E8: 36228.9604 | G8: 37156.3709
C9: Anteile an assoziierten Unternehmen und Gemeinschaftsunternehmen | E9: 29750.87993 | G9: 28235.52072
C10: Sonstige langfristige finanzielle Vermögenswerte und Beteiligungen | E10: 12280.78142 | G10: 13594.95822
C11: Langfristige Vertragsvermögenswerte aus Kundenverträgen | E11: 5188.155 | G11: 5940.917
C12: Langfristige Leasingforderungen | E12: 846.5477969 | G12: 729.8268612
C13: Sonstige langfristige Vermögenswerte und Forderungen | E13: 3592.372248 | G13: 3595.824473
C14: Latente Steueransprüche | E14: 42888.23537 | G14: 44603.10219
C15: Langfristige Vermögenswerte | E15: 185947.1519 | G15: 186789.6369
C17: Vorräte | E17: 41733.1782 | G17: 38201.88297
C18: Forderungen aus Lieferungen und Leistungen und sonstige kurzfristige Vermögenswerte | E18: 130041.5754 | G18: 139501.2474
C19: Kurzfristige Vertragsvermögenswerte aus Kundenverträgen | E19: 105971.627 | G19: 100869.7983
C20: Kurzfristige Leasingforderungen | E20: 594.8244255 | G20: 424.1066516
C21: Kurzfristige Steuerforderungen | E21: 25933.53646 | G21: 24662.3944
C22: Sonstige kurzfristige finanzielle Vermögenswerte | E22: 923.5256788 | G22: 1137.883246
C23: Liquide Mittel | E23: 102010.3562 | G23: 61096.37662
C24: Kurzfristige Vermögenswerte | E24: 407208.6234 | G24: 365893.6895
C26: SUMME AKTIVA | E26: 593155.7752 | G26: 552683.3264
C28: EIGENKAPITAL
C29: Grundkapital | E29: 13000 | G29: 13000
C30: Kapitalrücklage | E30: 117508.7713 | G30: 117508.7713
C31: Konzernbilanzgewinn/-verlust und andere Rücklagen | E31: -39267.92432 | G31: -37743.55492
C32: Kapital und Rücklagen, die den Anteilseignern der Gesellschaft zurechenbar sind | E32: 91240.84694 | G32: 92765.21634
C33: Nicht beherrschende Anteile | E33: -6479.91866 | G33: -5973.475386
C34: SUMME EIGENKAPITAL | E34: 84760.92828 | G34: 86791.74095
C36: VERBINDLICHKEITEN
C37: Langfristige Finanzverbindlichkeiten | E37: 120894.9666 | G37: 146846.1967
C38: Langfristige Leasingverbindlichkeiten | E38: 35692.5064 | G38: 31530.6901
C39: Verpflichtungen aus Leistungen an Arbeitnehmer nach Beendigung des Dienstverhältnisses | E39: 25425.1034 | G39: 24230.89407
C40: Langfristige Rückstellungen | E40: 5264.933719 | G40: 4486.486509
C41: Langfristige Vertragsverbindlichkeiten aus Kundenverträgen | E41: 9413.374 | G41: 826.725
C42: Sonstige langfristige Verbindlichkeiten | E42: 611.7611555 | G42: 508.9075209
C43: Latente Steuerschulden | E43: 1015.783958 | G43: 1052.684033
C44: Langfristige Verbindlichkeiten | E44: 198318.4292 | G44: 209482.5839
C46: Kurzfristige Finanzverbindlichkeiten | E46: 102362.4056 | G46: 45648.54033
C47: Kurzfristige Leasingverbindlichkeiten | E47: 13584.99269 | G47: 12059.33021
C48: Verbindlichkeiten aus Lieferungen und Leistungen | E48: 59403.81133 | G48: 57907.97214
C49: Kurzfristige Vertragsverbindlichkeiten aus Kundenverträgen | E49: 39144.5751 | G49: 50148.1306
C50: Kurzfristige Rückstellungen | E50: 42471.69516 | G50: 29705.21516
C51: Kurzfristige Steuerverbindlichkeiten | E51: 1747.70242 | G51: 2655.022777
C52: Sonstige Verbindlichkeiten und Abgrenzungen | E52: 51361.23016 | G52: 58284.78271
C53: Kurzfristige Verbindlichkeiten | E53: 310076.4125 | G53: 256408.9926
C55: SUMME VERBINDLICHKEITEN | E55: 508394.8417 | G55: 465891.5765
C57: SUMME PASSIVA | E57: 593155.7752 | G57: 552683.3264

Sheet EQ
C4: Konsolidierte Eigenkapitalveränderungsrechnung.
C7: in TEUR | E7: Grund- kapital | G7: Kapital- rücklage | I7: Sonstige Rücklagen | K7: Konzern- bilanzgewinn/-verlust | M7: Den Anteilseignern der Gesellschaft zurechenbar | O7: Nicht beherrschende Anteile | Q7: Summe Eigen- kapital
C8: Stand 31. März 2021 | E8: 13000 | G8: 117508.7713 | I8: -44171.00379 | K8: 4903.079475 | M8: =SUM(E8:K8) -> 91240.84694 | O8: -6479.91866 | Q8: 84760.92828
C9: Effekte aus dem Erwerb von Anteilen an Tochterunternehmen | M9: =SUM(E9:K9) -> 0 | Q9: =+M9+O9 -> 0
C10: Effekte aus dem Verkauf von Anteilen an Tochterunternehmen | M10: 0 | Q10: =+M10+O10 -> 0
C11: Dividende | K11: 0 | M11: 0 | O11: -67.19899129 | Q11: -67.19899129
C12: Periodenergebnis | K12: 2991.44859 | M12: 2991.44859 | O12: 2386.649396 | Q12: 5378.097986
C13: Sonstiges Ergebnis der Periode:
C14: Währungsumrechnungsdifferenzen | I14: -1467.079129 | M14: -1467.079129 | O14: -1813.007193 | Q14: -3280.086322
C15: Umbewertungen von Verpflichtungen aus Leistungen an Arbeitnehmer nach Beendigung des Dienstverhältnisses | I15: -89.57781 | K15: =-I15 -> 89.57781 | M15: 0 | O15: 0 | Q15: 0
C16: Stand 30. September 2021 | E16: =SUM(E8:E15) -> 13000 | G16: =SUM(G8:G15) -> 117508.7713 | I16: =SUM(I8:I15) -> -45727.66073 | K16: =SUM(K8:K15) -> 7984.105875 | M16: =SUM(M8:M15) -> 92765.2164 | O16: =SUM(O8:O15) -> -5973.475448 | Q16: =SUM(Q8:Q15)+0.5 -> 86792.24095
C19: Stand 31. März 2020 | E19: 13000 | G19: 117508.7713 | I19: -50128.60846 | K19: 107781.585 | M19: =SUM(E19:K19) -> 188161.7478 | O19: -5680.09599 | Q19: =+M19+O19 -> 182481.6518
C20: Kapital- und Anteilsveränderungen bei einem Tochterunternehmen | M20: 0 | Q20: =+M20+O20 -> 0
C21: Dividende | M21: 0 | O21: 0 | Q21: 0
C22: Periodenergebnis | K22: -53958.82087 | M22: -53958.82087 | O22: -1595.064487 | Q22: -55553.88536
C23: Sonstiges Ergebnis der Periode:
C24: Währungsumrechnungsdifferenzen | I24: 2581.465413 | M24: 2581.465413 | O24: 909.7542225 | Q24: 3491.219636
C25: Umbewertungen von Verpflichtungen aus Leistungen an Arbeitnehmer nach Beendigung des Dienstverhältnisses | M25: 0 | O25: 0 | Q25: 0
C26: Stand 30. September 2020 | E26: =SUM(E19:E25) -> 13000 | G26: =SUM(G19:G25) -> 117508.7713 | I26: =SUM(I19:I25) -> -47547.14304 | K26: =SUM(K19:K25) -> 53822.76408 | M26: =SUM(M19:M25) -> 136784.3923 | O26: =SUM(O19:O25) -> -6365.406254 | Q26: =SUM(Q19:Q25) -> 130418.986

Sheet CF
C3: Konsolidierte Kapitalflussrechnung.
C5: in TEUR | E5: H1 2020/21 | G5: H1 2021/22
C6: Ergebnis aus betrieblicher Tätigkeit | E6: -57835.51654 | G6: 10647.15821
C7: Planmäßige Abschreibungen | E7: 12747.45565 | G7: 10854.68003
C8: Wertminderungen | E8: 24791.488 | G8: -106.82938
C9: Veränderung Verpflichtungen aus Leistungen an Arbeitnehmer nach Beendigung des Dienstverhältnisses | E9: -363.8174818 | G9: -872.114331
C10: Veränderung langfristiger Forderungen aus Lieferungen und Leistungen, langfristiger Vertragsvermögenswerte aus Kundenverträgen und sonstiger langfristiger Vermögenswerte | E10: 8176.024445 | G10: -712.3872885
C11: Veränderung langfristiger Verbindlichkeiten aus Lieferungen und Leistungen, langfristiger Vertragsverbindlichkeiten aus Kundenverträgen und sonstiger langfristiger Verbindlichkeiten und Rückstellungen | E11: 1175.14676 | G11: -9648.666844
C12: Nettozahlungen von Ertragsteuern | E12: -10540.27772 | G12: -1792.286431
C13: Zinseinzahlungen | E13: 187.2990152 | G13: 199.3199382
C14: Zinsauszahlungen | E14: -2838.040307 | G14: -2145.483543
C15: Sonstige (netto) | E15: -711.5674147 | G15: -3438.800914
C16: Cashflow aus dem Ergebnis | E16: -25211.80559 | G16: 2984.589442
C18: Veränderung des Nettoumlaufvermögens:
C19: Veränderung Forderungen aus Lieferungen und Leistungen, kurzfristiger Vertragsvermögenswerte aus Kundenverträgen und sonstiger kurzfristiger Vermögenswerte | E19: 45162.47204 | G19: -5031.527389
C20: Veränderung Vorräte | E20: 1571.941 | G20: 3481.013222
C21: Veränderung Verbindlichkeiten aus Lieferungen und Leistungen, kurzfristiger Vertragsverbindlichkeiten aus Kundenverträgen und sonstiger kurzfristiger Verbindlichkeiten | E21: -43610.0411 | G21: 11081.67485
C22: Veränderung kurzfristige Rückstellungen | E22: -1096.603422 | G22: -12766.48
C23: Veränderung des Nettoumlaufvermögens | E23: 2027.768519 | G23: -3235.319319
C25: Cashflow aus betrieblicher Tätigkeit | E25: -23184.03707 | G25: -250.7298771
C27: Ankauf von Sachanlagen | E27: -1069.133326 | G27: -809.6709867
C28: Ankauf von immateriellen Vermögenswerten | E28: -532.8600196 | G28: -41.76086926
C29: Ankauf von Wertpapieren, Beteiligungen und sonstigen finanziellen Vermögenswerten | E29: -6057.36566 | G29: -1878.377961
C30: Zahlungen für den Erwerb von Gesellschaften (abzüglich der liquiden Mittel dieser Gesellschaften) | E30: -0.0002381532867 | G30: 0
C31: Zahlungen für den Erwerb von Anteilen an at-equity-konsolidierten Gesellschaften
C32: Einzahlungen aus dem Verkauf von Anteilen an Tochterunternehmen | E32: 0.0004461725801 | G32: 842.8
C33: Einzahlungen aus dem Verkauf von Sachanlagen und immateriellen Vermögenswerten | E33: 229.6444719 | G33: 694.3387207
C34: Einzahlungen aus dem Verkauf von Wertpapieren und sonstigen finanziellen Vermögenswerten | E34: 610.257 | G34: 281.491
C35: Cashflow aus Investitionstätigkeit | E35: -6819.457326 | G35: -911.1806136
C37: Free Cashflow 1) | E37: -30003.4944 | G37: -1161.910491
C39: An die Aktionäre der Gesellschaft gezahlte Dividende | E39: 5.395338638e-06 | G39: -6.180778358e-05
C40: An nicht beherrschende Anteile von Konzerngesellschaften gezahlte Dividende | E40: 0 | G40: -67.19892948
C41: Zahlungen für den Erwerb von nicht beherrschenden Anteilen | E41: 0 | G41: 0
C42: Zunahme langfristiger Finanzverbindlichkeiten | E42: 0 | G42: 18537.11
C43: Zunahme kurzfristiger Finanzverbindlichkeiten | E43: 15872.174 | G43: 8937.304
C44: Abnahme kurzfristiger Finanzverbindlichkeiten | E44: -17232.869 | G44: -58072.909
C45: Auszahlungen betreffend Leasing | E45: -7159.772539 | G45: -8770.468783
C46: Cashflow aus Finanzierungstätigkeit | E46: -8520.467393 | G46: -39436.16303
C48: Anfangsbestand Finanzmittel | E48: 122631.8068 | G48: 102010.3562
C49: Veränderung des Finanzmittelbestands 2) | E49: -38523.96179 | G49: -40598.07352
C50: Auswirkungen von Wechselkursänderungen | E50: -634.6503349 | G50: -315.9073123
C51: Endbestand Finanzmittel | E51: 83473.19555 | G51: 61096.37662
B55: 1) | C55: Cashflow aus betrieblicher Tätigkeit + Cashflow aus Investitionstätigkeit
B56: 2) | C56: Free Cashflow + Cashflow aus Finanzierungstätigkeit
